Cogmind - Beta 14 @@@ ROGUE MODE // 2024.08.10 @ 11:01:32 Player: Vivisector9999 Result: Self-destructed Performance ------------- Evolutions (1) 500 Regions Visited (2) 400 Robots Destroyed (10) 50 Value Destroyed (296) 296 Prototype IDs (0) 0 Alien Tech Used (0) 0 Bonus (0) 0 TOTAL SCORE: 1246 Bonus ------- None Cogmind --------- Core Integrity 319/400 Matter 300/300 Energy 102/125 System Corruption 0% Temperature Warm (162) Movement Core (250) Ox4 Location -9/Materials Parts ------- > --- POWER (1) -------- Light Ion Engine > --- PROPULSION (2) --- (None) > --- UTILITY (4) ------ Small Storage Unit Signal Interpreter Hardened Light Armor Plating > --- WEAPON (2) ------- (None) > --- INVENTORY (8) ---- Aluminum Leg Aluminum Leg Hover Unit Sensor Array Peak State ------------ > --- POWER ------------ Ion Engine > --- PROPULSION ------- Wheel Compact Wheel > --- UTILITY ---------- Small Storage Unit Sensor Array Signal Interpreter Hardened Light Armor Plating > --- WEAPON ----------- Small Laser Small Laser > --- INVENTORY -------- Light Ion Engine Aluminum Leg Aluminum Leg Hover Unit Sensor Array [Rating: 10] Favorites ----------- Power Ion Engine Engine Ion Engine Propulsion Compact Wheel Wheel Compact Wheel Utility Small Storage Unit Device Sensor Array Storage Small Storage Unit Processor Signal Interpreter Protection Hardened Light Armor Plating Weapon Small Laser Energy Gun Small Laser Build | -11 -10 -9 ------- Run | Yrd Mat Mat Slots Evolved 2 | . . 2 Power . | . . . Propulsion . | . . . Utility 2 | . . 2 Weapon . | . . . Parts Attached 13 | 6 3 4 Power 2 | 1 . 1 Engine 2 | 1 . 1 Core . | . . . Reactor . | . . . Propulsion 2 | 2 . . Treads . | . . . Leg . | . . . Wheel 2 | 2 . . Hover . | . . . Flight . | . . . Utility 5 | 1 1 3 Device 2 | . 1 1 Storage 1 | 1 . . Processor 1 | . . 1 Hackware . | . . . Protection 1 | . . 1 Artifact . | . . . Weapon 4 | 2 2 . Energy Gun 4 | 2 2 . Energy Cannon . | . . . Ballistic Gun . | . . . Ballistic Cannon . | . . . Launcher . | . . . Special Weapon . | . . . Impact Weapon . | . . . Slashing Weapon . | . . . Piercing Weapon . | . . . Special Melee Weapon . | . . . Unidentified Prototypes . | . . . Parts Lost 8 | . 1 7 Power 1 | . . 1 Propulsion 2 | . . 2 Utility 2 | . . 2 Weapon 3 | . 1 2 Highest Loss Streak 6 | . 1 6 To Critical Strikes . | . . . Average Slot Usage (%) 90 | . 98 80 Engine 12 | . 14 11 Wheel 23 | . 28 18 Device 11 | . 12 9 Storage 12 | . 14 11 Processor 2 | . . 4 Protection 1 | . . 4 Energy Gun 24 | . 27 20 Peak Build Rating 10 | 6 7 10 Average Rating 6 | 3 6 7 On Entrance 4 | . 6 7 Naked Turns . | . . . Heaviest Build 18 | 14 15 18 Greatest Support 26 | 26 26 26 Greatest Overweight (x) 1 | . . 1 Average Overweight (x) . | . . . Largest Inventory Capacity 8 | 8 8 8 Average Capacity 7 | 7 8 8 Most Carried 8 | 6 8 6 Average Carried 5 | 3 6 5 Final Capacity 8 | 8 8 8 Final Carried 6 | 4 6 4 Class Distribution -------------------- 100% | Mutant Dominant Class ---------------- Mutant | -10/Materials Mutant | -9/Materials Resources | -11 -10 -9 ----------- Run | Yrd Mat Mat Matter Collected 295 | 144 141 10 Remotely . | . . . Salvage Created 338 | . 199 139 Parts 12 | . 7 5 Haulers Intercepted . | . . . Recyclers Shooed . | . . . Parts Field Recycled . | . . . Retrieved Matter . | . . . Parts Self-Destructed . | . . . Prevented . | . . . Kills | -11 -10 -9 ------- Run | Yrd Mat Mat Combat Hostiles Destroyed 8 | . 5 3 Guns 8 | . 5 3 Classes Destroyed 5 | . 4 1 Builder 1 | . 1 . Operator 1 | . 1 . Swarmer 2 | . 2 . Grunt 5 | . 3 2 Sentry 1 | . . 1 Best Kill Streak 3 | . 3 1 Combat Bots Only 3 | . 3 1 Max Kills in Single Turn 1 | . 1 1 Gunslinging . | . . . Exploded . | . . . Melee . | . . . Uniques/NPCs Destroyed . | . . . Combat | -11 -10 -9 -------- Run | Yrd Mat Mat Hostile Shots Fired 91 | . 39 52 Missed 25 | . 12 13 Damage Taken 752 | . 278 474 Core 143 | . 62 81 Absorbed by Shields . | . . . Core Remaining (%) 87 | 100 75 . Volleys Fired 45 | . 21 24 Largest 2 | . 2 2 Hottest 80 | . 80 80 Shots Fired 83 | . 42 41 Gun 83 | . 42 41 Cannon . | . . . Launcher . | . . . Special . | . . . Kinetic . | . . . Thermal 60 | . 19 41 Explosive . | . . . Electromagnetic 23 | . 23 . Robot Hit Streak 14 | . 5 14 Robot Miss Streak 6 | . 6 3 Penetration Max . | . . . Secondary Targets 2 | . 2 . Max Gunslinging Chain 1 | . 1 . Shots Hit Robots 51 | . 20 31 Core Hits 17 | . 9 8 Critical Kills . | . . . Critical Parts Destroyed . | . . . Critical Strikes . | . . . Melee Attacks . | . . . Impact . | . . . Slashing . | . . . Piercing . | . . . Sneak Attacks . | . . . Combat Hostiles . | . . . Follow-up Attacks . | . . . Damage Inflicted 810 | . 455 355 Guns 642 | . 287 355 Cannons . | . . . Explosions 168 | . 168 . Melee . | . . . Ramming . | . . . Kinetic . | . . . Thermal 659 | . 304 355 Explosive . | . . . Electromagnetic 151 | . 151 . Impact . | . . . Slashing . | . . . Piercing . | . . . Highest Corruption . | . . . Average Corruption . | . . . Corruption Purged . | . . . Corruption Blocked . | . . . Overload Shots . | . . . Overflow Damage 107 | . 107 . Projectiles . | . . . Explosions 107 | . 107 . Melee . | . . . Knockbacks . | . . . Impact . | . . . Kinetic . | . . . Secondary . | . . . Self-Inflicted Damage 14 | . 14 . Shots 1 | . 1 . Rammed . | . . . Targets Rammed . | . . . Kicked . | . . . Crushed . | . . . Highest Temperature 196 | . 196 156 Average Temperature 64 | . 65 64 Received Heat Transfer 333 | . 78 255 Siege Activations . | . . . Robots Corrupted . | . . . Combat Hostiles . | . . . Parts Fried 1 | . 1 . Impact Corruptions . | . . . Robots Melted . | . . . Combat Hostiles . | . . . Parts Melted 2 | . 1 1 Heat Transferred 1250 | . 450 800 Parts Sabotaged . | . . . Parts Stolen . | . . . Parts Stripped . | . . . Power Chain Reactions 1 | . 1 . Alert | -11 -10 -9 ------- Run | Yrd Mat Mat Peak Influence 218 | . 218 151 Initial 91 | . . 91 Average 106 | . 117 117 Maximum Alert Level 1 | . 1 . Low Security (%) 92 | 100 85 100 Level 1 7 | . 14 . Level 2 . | . . . Level 3 . | . . . Level 4 . | . . . Level 5 . | . . . High Security . | . . . Max Security . | . . . Squads Dispatched 5 | . 3 2 Investigation 1 | . 1 . Extermination . | . . . Reinforcement 4 | . 2 2 Assault . | . . . Garrison . | . . . Intercept . | . . . Searches Triggered . | . . . Construction Impeded . | . . . Haulers Reinforced . | . . . Active Scanning Responses . | . . . Cargo Convoy Interrupts . | . . . Stealth | -11 -10 -9 --------- Run | Yrd Mat Mat Distress Signals 4 | . 2 2 Communications Jammed . | . . . Distress Signals . | . . . Times Spotted 23 | . 8 15 Peak Tracking Total 10 | . 5 10 Tactical Retreats 1 | . . 1 Traps | -11 -10 -9 ------- Run | Yrd Mat Mat Traps Triggered 2 | . 2 . Indirectly . | . . . Trap Hack Attempts . | . . . Triggered . | . . . Disarmed . | . . . Reprogrammed . | . . . Reused . | . . . Traps Extracted . | . . . Installed . | . . . Triggered . | . . . Machines | -11 -10 -9 ---------- Run | Yrd Mat Mat Machines Disabled 4 | . 4 . Max in Single Turn 3 | . 3 . Machines Repaired . | . . . Machines Dismantled . | . . . Machines Sabotaged . | . . . Overloaded Fab Kills . | . . . Hacking | -11 -10 -9 --------- Run | Yrd Mat Mat Machines Accessed 3 | . 1 2 Terminals 3 | . 1 2 Fabricators . | . . . Repair Stations . | . . . Recycling Units . | . . . Scanalyzers . | . . . Garrison Access . | . . . Total Hacks 13 | . 6 7 Successful 4 | . 2 2 Failed 9 | . 4 5 Catastrophic 3 | . 1 2 Database Lockouts . | . . . Manual 9 | . 4 5 Terminals 13 | . 6 7 Fabricators . | . . . Repair Stations . | . . . Recycling Units . | . . . Scanalyzers . | . . . Garrison Access . | . . . Terminal Hacks 4 | . 2 2 Robot Analysis 1 | . 1 . Alert Level 3 | . 1 2 Fabricator Hacks . | . . . Repair Station Hacks . | . . . Recycling Unit Hacks . | . . . Scanalyzer . | . . . Garrison Access Hacks . | . . . Unauthorized Hacks . | . . . Terminals . | . . . Fabricators . | . . . Repair Stations . | . . . Recycling Units . | . . . Scanalyzers . | . . . Garrison Access . | . . . Data Cores Recovered . | . . . Used . | . . . Hacking Detections 3 | . 1 2 Full Trace Events . | . . . Feedback Events . | . . . Feedback Blocked . | . . . Robot Schematics Acquired . | . . . Robots Built . | . . . Authchips . | . . . Time . | . . . Total Robot Build Rating . | . . . Part Schematics Acquired . | . . . Parts Built . | . . . Authchips . | . . . Time . | . . . Total Part Build Rating . | . . . Parts Repaired . | . . . Time . | . . . Parts Recycled . | . . . Recycled Matter . | . . . Retrieved Matter . | . . . Retrieved Components . | . . . Parts Scanalyzed . | . . . Part Schematics Acquired . | . . . Parts Damaged . | . . . Bothacking | -11 -10 -9 ------------ Run | Yrd Mat Mat Used RIF Installer . | . . . Robots Hacked . | . . . Non-combat . | . . . Combat . | . . . Robot Hacks Applied . | . . . Relay Couplers Released . | . . . Fabnet Peak Effective % . | . . . Robots Rewired . | . . . Allies Hacked . | . . . Hacks Repelled . | . . . Allies | -11 -10 -9 -------- Run | Yrd Mat Mat Total Allies . | . . . Largest Group . | . . . Highest-Rated Group . | . . . Highest-Rated Ally . | . . . Total Orders . | . . . Ally Attacks . | . . . Total Damage . | . . . Kills . | . . . Allies Corrupted . | . . . Allies Melted . | . . . Intel | -11 -10 -9 ------- Run | Yrd Mat Mat Robot Analysis Total 1 | . 1 . Derelict Logs Recovered . | . . . Drone Launches . | . . . Drone Recoveries . | . . . Exploration | -11 -10 -9 ------------- Run | Yrd Mat Mat Turns Passed 481 | 46 246 189 Spaces Moved 343 | 36 186 121 Core 3 | 3 . . Treads . | . . . Legs . | . . . Wheels 340 | 33 186 121 Hover . | . . . Flight . | . . . Fastest Speed 50 | 50 90 90 Average Speed 90 | 85 90 93 Slowest Speed 115 | 90 90 115 Overloaded Moves . | . . . Propulsion Burnouts . | . . . Robots Hopped . | . . . Cave-ins Triggered . | . . . Exploration Rate (%) 16 | 3 29 17 Regions Visited 2 Branch Regions . Pre-discovered Areas . | . . . Known Exits Taken . | . . . Unknown Exits Taken 2 | 1 1 . Scrap Searched . | . . . Spaces Dug . | . . . Terrain Destroyed 13 | . 13 . Melee . | . . . Projectile . | . . . AOE 13 | . 13 . Terrain Rammed . | . . . Walls Destroyed . | . . . Machines Disabled . | . . . Actions | -11 -10 -9 --------- Run | Yrd Mat Mat Total 432 | 51 226 155 Wait 4 | . . 4 Move 341 | 35 185 121 Hop . | . . . Pick Up 23 | 10 11 2 Fast Attach . | . . . Attach 13 | 6 3 4 Detach . | . . . Swap . | . . . Drop 6 | . 6 . Fire 45 | . 21 24 Melee . | . . . Ram . | . . . Kick . | . . . Crush . | . . . Escape Stasis . | . . . Rewire . | . . . Trap . | . . . Miscellaneous . | . . . Route ------- -11/Scrapyard -10/Materials -9/Materials History --------- Turn | Location | Event 2 | -11/Scrapyard | Met Revision 17 10 | -11/Scrapyard | Discovered new exit (range 15) 47 | -11/Scrapyard | Entered Materials 178 | -10/Materials | Discovered new exit (range 16) 293 | -10/Materials | Entered another Materials area 293 | -9/Materials | Evolved 2 slots: Utility x2 317 | -9/Materials | Build established: Mutant 482 | -9/Materials | Self-destructed Last Messages --------------- 00386_ O-16 Technician locks terminal. 00398_ ALERT: Hostiles spotted, dispatching reinforcements to Terminal M002. 00402_ Acquired Signal Interpreter. 00409_ Acquired Hrd. Light Armor Plating. 00421_ Connecting with Terminal... >>Alert(Check) Current Alert Level: Low Security 00431_ G-34 Mercenary destroyed. 00437_ Wheel destroyed. 00443_ Critical hit (Burn: +37). 00446_ W-16 Scout sends out distress signal. 00448_ R-06 Scavenger collects Ion Engine. 00467_ Sml. Laser destroyed. 00474_ Ion Engine destroyed. 00475_ Y-45 Defender destroyed. 00476_ Sensor Array destroyed. 00476_ Critical hit (Burn: +37). 00479_ Com. Wheel destroyed. 00481_ Sml. Laser destroyed. Map ----- +----------------------------------------------------+ | ????????????????????????????? | | ????????????????????????????? | | ??????????????????###+##????? | | ??????????????##### ##### | | ?????????????? ^ | | ??????????????? | | ???????????????? | | ?????????????????? """ | | ???????????????????# """ = | | ???????????????????# """ | | ???????????????????+ | | ???????????????????# | | ???????????????????# # | | ???????????????????## # | | ????????????????????# # | | ????????? ??????????# | | ????????? ????????### # | | ????????? ????????# # | | ????????? ????????# ######/## | | ????????? ????????# ## | | ????????? ????????# ## | | ????????# ????????# ## | | ????????# #????#### ## ! | | ######### #????# + !! | | # g!g= # #????# ##### != | | # Y@g # /????#=#???# | | # g""" g# #??###%###?# | | # """"" # #### #?######## | | # """"" # =#######??? | | # """"" + T +??? | | # g""" # #######??? | | # ### ## #????????? | | # "Y" #?# ####+####???????? | | # """ #?# ## #???????? | | # #?# ## """" #???????? | | #########?# ## """" #???????? | | ??????????# ## """" #???????? | | ??????????# ## #???????? | | ??????????# ## #???????? | | ??????????# #########???????? | | ??????????? ????????????????? | | ??????????? ????????????????? | | ??????????? ????????????????? | | ??????????? ????????????????? | | ??????????? ????????????????? | | ??????????? ????????????????? | | ??????????? ????????????????? | | ????????????????????????????? | | ????????????????????????????? | | ????????????????????????????? | +----------------------------------------------------+ Best States ------------- Heat Dissipation 28 Energy Generation 10 Energy Capacity 250 Matter Stores 300 Matter Capacity 300 Sight Range 16 Robot Scan Range 14 Terrain Scan Density 10 Armor Coverage 150 Evasion (%) 42 Item Schematics ----------------- None Robot Schematics ------------------ None Fabricated ------------ Nothing Alien Tech Used ----------------- None Achievements -------------- None Challenges ------------ None Game ------ Seed WarpBottomlessFilter Manual? 0 Play Time 00:11:39 Cumulative 3.9 hours Start 2024.08.10 @ 10:49:08 End 2024.08.10 @ 11:01:32 Sessions 1 Manual Loads 0 Difficulty Rogue Special Mode None Game No. 8 Rogue 8 Adventurer 0 Explorer 0 Win Type - Total 0 Types 0/0/0/0/0/0/0/0/0 Lore% 6 Gallery% 6 Achievement% 19 Wizard Run 0 Options --------- Layout 1 ASCII 0 Keyboard 0 Movement Numpad Keybinds 0 Fullscreen 1 Font 24/Smallcaps Map View 50x35 Zoom Use 0% Tactical HUD 1 Map Filters NONE Filters NONE Steam 1 RUN: 07dfb77a-f044-45ac-b6b1-4beaa6a7106b